[Event "Titled Tuesday Blitz April 12 Early 2022"]
[White "Mirzoev, Azer"]
[Black "Pesotskiy, Mikhail"]
[WhiteFideId "13400304"]
[BlackFideId "34164453"]
[WhiteElo "2525"]
[BlackElo "2010"]
[Result "1-0"]
[Round "08"]
[TimeControl "180+1"]
[Date "2022.04.13"]
[WhiteClock "0:00:56"]
[BlackClock "0:00:13"]

1. Nf3 {[%clk 0:03:00]}  Nf6 {[%clk 0:03:00]} 2. b3 {[%clk 0:03:00]}  b6 {[%clk 0:03:00]} 3. Bb2 {[%clk 0:03:01]}  Bb7 {[%clk 0:03:01]} 4. e3 {[%clk 0:03:01]}  e6 {[%clk 0:03:02]} 5. c4 {[%clk 0:03:01]}  Be7 {[%clk 0:03:03]} 6. d4 {[%clk 0:03:01]}  c5 {[%clk 0:03:00]} 7. Bd3 {[%clk 0:03:00]}  O-O {[%clk 0:02:58]} 8. O-O {[%clk 0:03:00]}  d5 {[%clk 0:02:54]} 9. cxd5 {[%clk 0:02:58]}  exd5 {[%clk 0:02:55]} 10. Nbd2 {[%clk 0:02:55]}  Nbd7 {[%clk 0:02:54]} 11. Ne5 {[%clk 0:02:55]}  Nxe5 {[%clk 0:02:29]} 12. dxe5 {[%clk 0:02:56]}  Ne4 {[%clk 0:02:30]} 13. f4 {[%clk 0:02:54]}  f6 {[%clk 0:01:49]} 14. Nxe4 {[%clk 0:02:53]}  dxe4 {[%clk 0:01:48]} 15. Bc4+ {[%clk 0:02:53]}  Kh8 {[%clk 0:01:49]} 16. e6 {[%clk 0:02:43]}  f5 {[%clk 0:01:43]} 17. Qd7 {[%clk 0:02:37]}  Qxd7 {[%clk 0:01:40]} 18. exd7 {[%clk 0:02:38]}  Rad8 {[%clk 0:01:41]} 19. Rad1 {[%clk 0:02:35]}  Bc6 {[%clk 0:01:38]} 20. Be6 {[%clk 0:02:28]}  Bf6 {[%clk 0:01:32]} 21. Rd6 {[%clk 0:02:17]}  Bb5 {[%clk 0:01:26]} 22. Rf2 {[%clk 0:02:16]}  Bxb2 {[%clk 0:01:16]} 23. Rxb2 {[%clk 0:02:15]}  Rf6 {[%clk 0:01:17]} 24. a4 {[%clk 0:02:10]}  Bd3 {[%clk 0:01:17]} 25. a5 {[%clk 0:02:09]}  bxa5 {[%clk 0:00:56]} 26. Rc6 {[%clk 0:02:05]}  g6 {[%clk 0:00:40]} 27. Rc8 {[%clk 0:01:52]}  Rff8 {[%clk 0:00:40]} 28. Rxc5 {[%clk 0:01:52]}  Kg7 {[%clk 0:00:38]} 29. Ra2 {[%clk 0:01:48]}  Kf6 {[%clk 0:00:37]} 30. Re5 {[%clk 0:01:34]}  a6 {[%clk 0:00:32]} 31. Raxa5 {[%clk 0:01:29]}  Bb5 {[%clk 0:00:33]} 32. h3 {[%clk 0:01:28]}  h5 {[%clk 0:00:31]} 33. g4 {[%clk 0:01:26]}  hxg4 {[%clk 0:00:27]} 34. hxg4 {[%clk 0:01:27]}  Bxd7 {[%clk 0:00:23]} 35. Rxa6 {[%clk 0:01:19]}  Bxe6 {[%clk 0:00:19]} 36. Rexe6+ {[%clk 0:01:18]}  Kf7 {[%clk 0:00:20]} 37. Rf6+ {[%clk 0:01:18]}  Ke7 {[%clk 0:00:19]} 38. Rae6+ {[%clk 0:01:17]}  Kd7 {[%clk 0:00:20]} 39. Rxg6 {[%clk 0:01:16]}  fxg4 {[%clk 0:00:19]} 40. Kf2 {[%clk 0:01:15]}  Rb8 {[%clk 0:00:18]} 41. Rxe4 {[%clk 0:01:12]}  Rxb3 {[%clk 0:00:18]} 42. Rxg4 {[%clk 0:01:13]}  Rb2+ {[%clk 0:00:16]} 43. Kf3 {[%clk 0:01:12]}  Rh8 {[%clk 0:00:17]} 44. Rg7+ {[%clk 0:01:12]}  Kd6 {[%clk 0:00:17]} 45. Rg6+ {[%clk 0:01:12]}  Kd7 {[%clk 0:00:17]} 46. Re5 {[%clk 0:01:09]}  Rh3+ {[%clk 0:00:15]} 47. Rg3 {[%clk 0:01:08]}  Rhh2 {[%clk 0:00:14]} 48. Ke4 {[%clk 0:01:06]}  Rb4+ {[%clk 0:00:14]} 49. Kf5 {[%clk 0:01:05]}  Rh5+ {[%clk 0:00:14]} 50. Rg5 {[%clk 0:01:05]}  Rh3 {[%clk 0:00:13]} 51. e4 {[%clk 0:01:03]}  Rf3 {[%clk 0:00:11]} 52. Rg7+ {[%clk 0:01:02]}  Kd6 {[%clk 0:00:11]} 53. Re6+ {[%clk 0:01:02]}  Kc5 {[%clk 0:00:11]} 54. Rc7+ {[%clk 0:01:01]}  Kd4 {[%clk 0:00:12]} 55. Rd6+ {[%clk 0:00:57]}  Ke3 {[%clk 0:00:12]} 56. Rc3+ {[%clk 0:00:57]}  Ke2 {[%clk 0:00:12]} 57. Rxf3 {[%clk 0:00:57]}  Kxf3 {[%clk 0:00:13]} 58. Rd3+ {[%clk 0:00:56]}  Ke2 {[%clk 0:00:13]} 59. Rh3 {[%clk 0:00:56]} 1-0


[Site "https://www.chess.com"]

[Event "Titled Tuesday Blitz April 12 Early 2022"]
[White "Nakamura, Hikaru"]
[Black "Abdusattorov, Nodirbek"]
[WhiteFideId "2016192"]
[BlackFideId "14204118"]
[WhiteElo "2850"]
[BlackElo "2663"]
[Result "0-1"]
[Round "08"]
[TimeControl "180+1"]
[Date "2022.04.12"]
[WhiteClock "0:00:29"]
[BlackClock "0:00:22"]

1. Nf3 {[%clk 0:03:00]}  Nf6 {[%clk 0:03:00]} 2. b3 {[%clk 0:03:00]}  g6 {[%clk 0:03:00]} 3. Bb2 {[%clk 0:03:01]}  Bg7 {[%clk 0:03:01]} 4. d4 {[%clk 0:03:02]}  d5 {[%clk 0:03:00]} 5. e3 {[%clk 0:03:02]}  O-O {[%clk 0:03:00]} 6. c4 {[%clk 0:03:03]}  b6 {[%clk 0:02:57]} 7. Nc3 {[%clk 0:02:58]}  Bb7 {[%clk 0:02:56]} 8. Rc1 {[%clk 0:02:58]}  Nbd7 {[%clk 0:02:52]} 9. Be2 {[%clk 0:02:26]}  c5 {[%clk 0:02:49]} 10. O-O {[%clk 0:02:26]}  Rc8 {[%clk 0:02:46]} 11. cxd5 {[%clk 0:02:24]}  Nxd5 {[%clk 0:02:45]} 12. Nxd5 {[%clk 0:02:24]}  Bxd5 {[%clk 0:02:45]} 13. Ba6 {[%clk 0:02:25]}  Rc7 {[%clk 0:02:41]} 14. Qe2 {[%clk 0:02:24]}  Qa8 {[%clk 0:02:39]} 15. Rfd1 {[%clk 0:02:20]}  Nb8 {[%clk 0:02:27]} 16. Bd3 {[%clk 0:02:16]}  Bxf3 {[%clk 0:02:23]} 17. gxf3 {[%clk 0:02:16]}  Qd5 {[%clk 0:02:06]} 18. Be4 {[%clk 0:02:09]}  Qg5+ {[%clk 0:02:06]} 19. Kh1 {[%clk 0:02:10]}  Nd7 {[%clk 0:02:03]} 20. f4 {[%clk 0:02:09]}  Qh4 {[%clk 0:02:03]} 21. b4 {[%clk 0:02:05]}  Rfc8 {[%clk 0:01:42]} 22. bxc5 {[%clk 0:01:28]}  bxc5 {[%clk 0:01:41]} 23. d5 {[%clk 0:01:29]}  Bxb2 {[%clk 0:01:38]} 24. Qxb2 {[%clk 0:01:29]}  c4 {[%clk 0:01:36]} 25. Qe2 {[%clk 0:01:25]}  c3 {[%clk 0:01:35]} 26. Bf3 {[%clk 0:01:23]}  Qf6 {[%clk 0:01:17]} 27. Bg4 {[%clk 0:01:20]}  Rb8 {[%clk 0:01:12]} 28. Rc2 {[%clk 0:01:16]}  Nc5 {[%clk 0:01:10]} 29. Rd4 {[%clk 0:01:14]}  h5 {[%clk 0:01:01]} 30. Bh3 {[%clk 0:01:06]}  Nb7 {[%clk 0:00:39]} 31. Rb4 {[%clk 0:01:02]}  Rd8 {[%clk 0:00:36]} 32. Bg2 {[%clk 0:01:02]}  Nd6 {[%clk 0:00:36]} 33. Qf3 {[%clk 0:01:00]}  Nf5 {[%clk 0:00:31]} 34. e4 {[%clk 0:01:00]}  Nd4 {[%clk 0:00:31]} 35. Rxd4 {[%clk 0:00:38]}  Qxd4 {[%clk 0:00:32]} 36. f5 {[%clk 0:00:36]}  Rb8 {[%clk 0:00:31]} 37. h4 {[%clk 0:00:36]}  Rb2 {[%clk 0:00:29]} 38. fxg6 {[%clk 0:00:35]}  fxg6 {[%clk 0:00:29]} 39. Qg3 {[%clk 0:00:36]}  Rxc2 {[%clk 0:00:25]} 40. Qxg6+ {[%clk 0:00:35]}  Kf8 {[%clk 0:00:23]} 41. Qh6+ {[%clk 0:00:31]}  Qg7 {[%clk 0:00:22]} 42. Qf4+ {[%clk 0:00:32]}  Qf6 {[%clk 0:00:22]} 43. Qxc7 {[%clk 0:00:29]} 0-1


[Site "https://www.chess.com"]

[Event "Titled Tuesday Blitz April 12 Early 2022"]
[White "Namitbir Singh Walia"]
[Black "Maltsevskaya, Aleksandra"]
[WhiteFideId "35071068"]
[BlackFideId "24174041"]
[WhiteElo "1565"]
[BlackElo "2235"]
[Result "0-1"]
[Round "08"]
[TimeControl "180+1"]
[Date "2022.04.13"]
[WhiteClock "0:00:10"]
[BlackClock "0:00:58"]

1. d4 {[%clk 0:03:00]}  Nf6 {[%clk 0:02:40]} 2. c4 {[%clk 0:03:00]}  b6 {[%clk 0:02:38]} 3. Nf3 {[%clk 0:02:59]}  Bb7 {[%clk 0:02:38]} 4. g3 {[%clk 0:02:59]}  g6 {[%clk 0:02:38]} 5. Bg2 {[%clk 0:02:59]}  Bg7 {[%clk 0:02:38]} 6. O-O {[%clk 0:02:59]}  O-O {[%clk 0:02:39]} 7. Nc3 {[%clk 0:02:57]}  Ne4 {[%clk 0:02:39]} 8. Qc2 {[%clk 0:02:55]}  Nxc3 {[%clk 0:02:30]} 9. bxc3 {[%clk 0:02:56]}  d6 {[%clk 0:02:17]} 10. a4 {[%clk 0:02:49]}  Nc6 {[%clk 0:02:09]} 11. Nd2 {[%clk 0:02:45]}  Na5 {[%clk 0:02:06]} 12. e4 {[%clk 0:02:24]}  e5 {[%clk 0:01:56]} 13. Bb2 {[%clk 0:02:24]}  c5 {[%clk 0:01:46]} 14. d5 {[%clk 0:02:20]}  Ba6 {[%clk 0:01:44]} 15. Qd3 {[%clk 0:02:16]}  f5 {[%clk 0:01:44]} 16. Rae1 {[%clk 0:02:03]}  f4 {[%clk 0:01:34]} 17. Bh3 {[%clk 0:01:59]}  h5 {[%clk 0:01:24]} 18. f3 {[%clk 0:01:50]}  Qg5 {[%clk 0:01:12]} 19. Kg2 {[%clk 0:01:24]}  fxg3 {[%clk 0:01:11]} 20. hxg3 {[%clk 0:01:25]}  h4 {[%clk 0:01:11]} 21. Be6+ {[%clk 0:00:59]}  Kh7 {[%clk 0:01:10]} 22. g4 {[%clk 0:00:39]}  Qf4 {[%clk 0:01:08]} 23. Rf2 {[%clk 0:00:35]}  Qg3+ {[%clk 0:01:03]} 24. Kf1 {[%clk 0:00:35]}  Bh6 {[%clk 0:01:03]} 25. Rg2 {[%clk 0:00:25]}  Bxd2 {[%clk 0:00:58]} 26. Rxg3 {[%clk 0:00:13]}  Bxc4 {[%clk 0:00:58]} 27. Qxc4 {[%clk 0:00:10]}  Nxc4 {[%clk 0:00:58]} 0-1


[Site "https://www.chess.com"]

[Event "Titled Tuesday Blitz April 12 Early 2022"]
[White "Narayanan, Srinath"]
[Black "Grandelius, Nils"]
[WhiteFideId "5018420"]
[BlackFideId "1710400"]
[WhiteElo "2472"]
[BlackElo "2617"]
[Result "1-0"]
[Round "08"]
[TimeControl "180+1"]
[Date "2022.04.12"]
[WhiteClock "0:00:07"]
[BlackClock "0:00:02"]

1. Nf3 {[%clk 0:03:00]}  d5 {[%clk 0:02:58]} 2. e3 {[%clk 0:03:01]}  Nf6 {[%clk 0:02:57]} 3. c4 {[%clk 0:03:01]}  e6 {[%clk 0:02:58]} 4. b3 {[%clk 0:03:01]}  b6 {[%clk 0:02:54]} 5. Bb2 {[%clk 0:03:01]}  Bd6 {[%clk 0:02:55]} 6. Nc3 {[%clk 0:03:01]}  a6 {[%clk 0:02:54]} 7. Rc1 {[%clk 0:02:59]}  O-O {[%clk 0:02:53]} 8. g3 {[%clk 0:02:52]}  Bb7 {[%clk 0:02:45]} 9. cxd5 {[%clk 0:02:51]}  exd5 {[%clk 0:02:40]} 10. Bg2 {[%clk 0:02:50]}  d4 {[%clk 0:02:39]} 11. Ne2 {[%clk 0:02:45]}  dxe3 {[%clk 0:02:39]} 12. dxe3 {[%clk 0:02:46]}  Bb4+ {[%clk 0:02:36]} 13. Bc3 {[%clk 0:02:38]}  Qxd1+ {[%clk 0:02:32]} 14. Rxd1 {[%clk 0:02:39]}  Bxc3+ {[%clk 0:02:29]} 15. Nxc3 {[%clk 0:02:40]}  Nbd7 {[%clk 0:02:28]} 16. O-O {[%clk 0:02:40]}  Rfd8 {[%clk 0:02:25]} 17. Nd4 {[%clk 0:02:39]}  Bxg2 {[%clk 0:02:24]} 18. Kxg2 {[%clk 0:02:39]}  Ne5 {[%clk 0:02:21]} 19. f4 {[%clk 0:01:58]}  Neg4 {[%clk 0:02:21]} 20. Nc2 {[%clk 0:01:58]}  Re8 {[%clk 0:01:44]} 21. Rfe1 {[%clk 0:01:46]}  Ne4 {[%clk 0:01:44]} 22. Nxe4 {[%clk 0:01:44]}  Rxe4 {[%clk 0:01:45]} 23. Kf3 {[%clk 0:01:44]}  f5 {[%clk 0:01:22]} 24. h3 {[%clk 0:01:41]}  Nf6 {[%clk 0:01:22]} 25. Nd4 {[%clk 0:01:42]}  g6 {[%clk 0:01:19]} 26. g4 {[%clk 0:01:33]}  fxg4+ {[%clk 0:00:58]} 27. hxg4 {[%clk 0:01:33]}  Rae8 {[%clk 0:00:58]} 28. Nc6 {[%clk 0:01:31]}  g5 {[%clk 0:00:21]} 29. Ne5 {[%clk 0:01:05]}  Re7 {[%clk 0:00:18]} 30. Rd8+ {[%clk 0:00:42]}  Kg7 {[%clk 0:00:18]} 31. Red1 {[%clk 0:00:43]}  a5 {[%clk 0:00:13]} 32. R1d3 {[%clk 0:00:41]}  a4 {[%clk 0:00:13]} 33. Rc8 {[%clk 0:00:40]}  axb3 {[%clk 0:00:12]} 34. axb3 {[%clk 0:00:40]}  h5 {[%clk 0:00:07]} 35. gxh5 {[%clk 0:00:34]}  gxf4 {[%clk 0:00:05]} 36. exf4 {[%clk 0:00:24]}  Re1 {[%clk 0:00:06]} 37. Kf2 {[%clk 0:00:19]}  Rh1 {[%clk 0:00:05]} 38. Rg3+ {[%clk 0:00:19]}  Kh7 {[%clk 0:00:06]} 39. Ng6 {[%clk 0:00:15]}  Ne4+ {[%clk 0:00:01]} 40. Kg2 {[%clk 0:00:13]}  Nxg3 {[%clk 0:00:02]} 41. Nxe7 {[%clk 0:00:13]}  Re1 {[%clk 0:00:03]} 42. Kxg3 {[%clk 0:00:06]}  Rxe7 {[%clk 0:00:02]} 43. Kg4 {[%clk 0:00:07]} 1-0


[Site "https://www.chess.com"]

[Event "Titled Tuesday Blitz April 12 Early 2022"]
[White "Nugumanov, Bakhtiyar"]
[Black "Girinath, P.D.S."]
[WhiteFideId "13701797"]
[BlackFideId "5000572"]
[WhiteElo "2262"]
[BlackElo "2369"]
[Result "0-1"]
[Round "08"]
[TimeControl "180+1"]
[Date "2022.04.13"]
[WhiteClock "0:00:01"]
[BlackClock "0:01:08"]

1. Nf3 {[%clk 0:02:57]}  Nf6 {[%clk 0:02:59]} 2. c4 {[%clk 0:02:56]}  g6 {[%clk 0:03:00]} 3. Nc3 {[%clk 0:02:56]}  Bg7 {[%clk 0:03:01]} 4. e4 {[%clk 0:02:56]}  d6 {[%clk 0:03:01]} 5. d4 {[%clk 0:02:54]}  O-O {[%clk 0:03:01]} 6. Be2 {[%clk 0:02:53]}  e5 {[%clk 0:03:01]} 7. O-O {[%clk 0:02:54]}  exd4 {[%clk 0:03:00]} 8. Nxd4 {[%clk 0:02:53]}  Re8 {[%clk 0:03:01]} 9. f3 {[%clk 0:02:52]}  Nc6 {[%clk 0:03:02]} 10. Be3 {[%clk 0:02:07]}  Nh5 {[%clk 0:03:00]} 11. Nc2 {[%clk 0:01:22]}  Be5 {[%clk 0:02:48]} 12. Qd2 {[%clk 0:01:20]}  Qh4 {[%clk 0:02:39]} 13. f4 {[%clk 0:01:08]}  Bxc3 {[%clk 0:02:35]} 14. Qxc3 {[%clk 0:00:37]}  Rxe4 {[%clk 0:02:33]} 15. Bf3 {[%clk 0:00:37]}  Re8 {[%clk 0:02:19]} 16. Bf2 {[%clk 0:00:37]}  Qf6 {[%clk 0:02:15]} 17. Nd4 {[%clk 0:00:17]}  Nxf4 {[%clk 0:02:00]} 18. Nxc6 {[%clk 0:00:16]}  Qxc3 {[%clk 0:01:53]} 19. bxc3 {[%clk 0:00:17]}  bxc6 {[%clk 0:01:51]} 20. Bxc6 {[%clk 0:00:18]}  Be6 {[%clk 0:01:51]} 21. Bxa8 {[%clk 0:00:18]}  Rxa8 {[%clk 0:01:50]} 22. Rfb1 {[%clk 0:00:11]}  Bxc4 {[%clk 0:01:29]} 23. Rb7 {[%clk 0:00:11]}  c5 {[%clk 0:01:28]} 24. Rd1 {[%clk 0:00:08]}  Nd3 {[%clk 0:01:27]} 25. Bg3 {[%clk 0:00:07]}  d5 {[%clk 0:01:27]} 26. Rc7 {[%clk 0:00:07]}  Re8 {[%clk 0:01:24]} 27. Rxa7 {[%clk 0:00:05]}  f5 {[%clk 0:01:22]} 28. a4 {[%clk 0:00:05]}  f4 {[%clk 0:01:22]} 29. Bf2 {[%clk 0:00:04]}  Re2 {[%clk 0:01:21]} 30. Bxc5 {[%clk 0:00:03]}  Nxc5 {[%clk 0:01:21]} 31. Ra8+ {[%clk 0:00:04]}  Kf7 {[%clk 0:01:20]} 32. a5 {[%clk 0:00:04]}  Ra2 {[%clk 0:01:17]} 33. Rf1 {[%clk 0:00:03]}  g5 {[%clk 0:01:16]} 34. Re1 {[%clk 0:00:02]}  Ne4 {[%clk 0:01:12]} 35. Ra7+ {[%clk 0:00:02]}  Kg6 {[%clk 0:01:12]} 36. a6 {[%clk 0:00:01]}  Rxa6 {[%clk 0:01:10]} 37. Rc7 {[%clk 0:00:01]}  Ra2 {[%clk 0:01:09]} 38. Rc5 {[%clk 0:00:01]}  Nxc5 {[%clk 0:01:08]} 0-1


[Site "https://www.chess.com"]

[Event "Titled Tuesday Blitz April 12 Early 2022"]
[White "Oganian, Miran"]
[Black "Zhu, Jiner"]
[WhiteFideId "4122488"]
[BlackFideId "8608059"]
[WhiteElo "2357"]
[BlackElo "2281"]
[Result "0-1"]
[Round "08"]
[TimeControl "180+1"]
[Date "2022.04.12"]
[WhiteClock "0:00:03"]
[BlackClock "0:00:08"]

1. e4 {[%clk 0:02:59]}  c5 {[%clk 0:02:59]} 2. Nf3 {[%clk 0:02:59]}  Nc6 {[%clk 0:02:59]} 3. c3 {[%clk 0:03:00]}  d5 {[%clk 0:02:58]} 4. exd5 {[%clk 0:03:00]}  Qxd5 {[%clk 0:02:59]} 5. d4 {[%clk 0:03:01]}  Nf6 {[%clk 0:02:58]} 6. Be2 {[%clk 0:03:02]}  e6 {[%clk 0:02:59]} 7. O-O {[%clk 0:03:02]}  Be7 {[%clk 0:02:57]} 8. c4 {[%clk 0:03:02]}  Qd8 {[%clk 0:02:55]} 9. dxc5 {[%clk 0:03:02]}  Bxc5 {[%clk 0:02:48]} 10. Qxd8+ {[%clk 0:03:00]}  Kxd8 {[%clk 0:02:48]} 11. Nc3 {[%clk 0:03:00]}  a6 {[%clk 0:02:42]} 12. Bf4 {[%clk 0:02:59]}  Ke7 {[%clk 0:02:36]} 13. Rfd1 {[%clk 0:02:59]}  Rd8 {[%clk 0:02:22]} 14. Na4 {[%clk 0:02:40]}  Ba7 {[%clk 0:02:18]} 15. Bc7 {[%clk 0:02:39]}  Rd7 {[%clk 0:01:54]} 16. Nb6 {[%clk 0:02:04]}  Rxd1+ {[%clk 0:01:48]} 17. Rxd1 {[%clk 0:02:03]}  Bxb6 {[%clk 0:01:49]} 18. Bxb6 {[%clk 0:02:03]}  Nd7 {[%clk 0:01:43]} 19. Bc7 {[%clk 0:02:01]}  b6 {[%clk 0:01:41]} 20. Ng5 {[%clk 0:01:48]}  h6 {[%clk 0:01:28]} 21. Bf3 {[%clk 0:01:48]}  hxg5 {[%clk 0:01:16]} 22. Bxc6 {[%clk 0:01:48]}  Ra7 {[%clk 0:01:16]} 23. Bd6+ {[%clk 0:01:15]}  Kf6 {[%clk 0:01:15]} 24. b4 {[%clk 0:00:54]}  Ne5 {[%clk 0:01:09]} 25. Bxe5+ {[%clk 0:00:38]}  Kxe5 {[%clk 0:01:10]} 26. a4 {[%clk 0:00:27]}  Rc7 {[%clk 0:00:51]} 27. b5 {[%clk 0:00:27]}  a5 {[%clk 0:00:42]} 28. Kf1 {[%clk 0:00:15]}  Bb7 {[%clk 0:00:39]} 29. Bxb7 {[%clk 0:00:11]}  Rxb7 {[%clk 0:00:39]} 30. Rd8 {[%clk 0:00:10]}  Rc7 {[%clk 0:00:37]} 31. Rb8 {[%clk 0:00:10]}  Rxc4 {[%clk 0:00:37]} 32. Rxb6 {[%clk 0:00:11]}  Rxa4 {[%clk 0:00:37]} 33. Rb7 {[%clk 0:00:10]}  Kf6 {[%clk 0:00:25]} 34. Ra7 {[%clk 0:00:10]}  Ra2 {[%clk 0:00:23]} 35. b6 {[%clk 0:00:10]}  Rb2 {[%clk 0:00:23]} 36. b7 {[%clk 0:00:10]}  a4 {[%clk 0:00:22]} 37. g3 {[%clk 0:00:09]}  a3 {[%clk 0:00:20]} 38. Kg2 {[%clk 0:00:09]}  g4 {[%clk 0:00:17]} 39. h3 {[%clk 0:00:06]}  gxh3+ {[%clk 0:00:17]} 40. Kxh3 {[%clk 0:00:07]}  a2 {[%clk 0:00:17]} 41. Kg2 {[%clk 0:00:07]}  Rxb7 {[%clk 0:00:16]} 42. Rxa2 {[%clk 0:00:08]}  Rb4 {[%clk 0:00:16]} 43. Ra3 {[%clk 0:00:08]}  g5 {[%clk 0:00:16]} 44. Rf3+ {[%clk 0:00:09]}  Kg6 {[%clk 0:00:16]} 45. Ra3 {[%clk 0:00:10]}  g4 {[%clk 0:00:16]} 46. Ra8 {[%clk 0:00:09]}  Kf5 {[%clk 0:00:15]} 47. Ra7 {[%clk 0:00:10]}  f6 {[%clk 0:00:15]} 48. Ra5+ {[%clk 0:00:10]}  e5 {[%clk 0:00:15]} 49. Ra2 {[%clk 0:00:10]}  Rb3 {[%clk 0:00:16]} 50. Rc2 {[%clk 0:00:10]}  Kg5 {[%clk 0:00:16]} 51. Ra2 {[%clk 0:00:10]}  Rb5 {[%clk 0:00:16]} 52. Rc2 {[%clk 0:00:10]}  Ra5 {[%clk 0:00:15]} 53. Rb2 {[%clk 0:00:10]}  Ra3 {[%clk 0:00:16]} 54. Rc2 {[%clk 0:00:11]}  Rd3 {[%clk 0:00:13]} 55. Rb2 {[%clk 0:00:11]}  f5 {[%clk 0:00:11]} 56. Rb8 {[%clk 0:00:11]}  f4 {[%clk 0:00:10]} 57. gxf4+ {[%clk 0:00:11]}  exf4 {[%clk 0:00:10]} 58. Rg8+ {[%clk 0:00:12]}  Kf5 {[%clk 0:00:10]} 59. Rf8+ {[%clk 0:00:12]}  Ke4 {[%clk 0:00:11]} 60. Re8+ {[%clk 0:00:13]}  Kd4 {[%clk 0:00:11]} 61. Rd8+ {[%clk 0:00:13]}  Ke4 {[%clk 0:00:11]} 62. Re8+ {[%clk 0:00:13]}  Kd4 {[%clk 0:00:11]} 63. Rd8+ {[%clk 0:00:13]}  Kc3 {[%clk 0:00:10]} 64. Rg8 {[%clk 0:00:13]}  Kd2 {[%clk 0:00:08]} 65. Rxg4 {[%clk 0:00:13]}  f3+ {[%clk 0:00:08]} 66. Kg3 {[%clk 0:00:12]}  Ke2 {[%clk 0:00:09]} 67. Re4+ {[%clk 0:00:12]}  Kd2 {[%clk 0:00:08]} 68. Re8 {[%clk 0:00:10]}  Rc3 {[%clk 0:00:08]} 69. Kf4 {[%clk 0:00:10]}  Ra3 {[%clk 0:00:06]} 70. Rb8 {[%clk 0:00:10]}  Rc3 {[%clk 0:00:06]} 71. Rb2+ {[%clk 0:00:10]}  Ke1 {[%clk 0:00:07]} 72. Kg3 {[%clk 0:00:10]}  Kf1 {[%clk 0:00:06]} 73. Ra2 {[%clk 0:00:09]}  Rb3 {[%clk 0:00:07]} 74. Ra7 {[%clk 0:00:09]}  Rc3 {[%clk 0:00:07]} 75. Rh7 {[%clk 0:00:08]}  Rb3 {[%clk 0:00:07]} 76. Re7 {[%clk 0:00:08]}  Rc3 {[%clk 0:00:07]} 77. Rf7 {[%clk 0:00:09]}  Ke2 {[%clk 0:00:07]} 78. Rf8 {[%clk 0:00:09]}  Rb3 {[%clk 0:00:07]} 79. Rh8 {[%clk 0:00:09]}  Ra3 {[%clk 0:00:07]} 80. Rh1 {[%clk 0:00:09]}  Rb3 {[%clk 0:00:07]} 81. Ra1 {[%clk 0:00:09]}  Rc3 {[%clk 0:00:07]} 82. Ra2+ {[%clk 0:00:10]}  Kf1 {[%clk 0:00:07]} 83. Kf4 {[%clk 0:00:11]}  Kg2 {[%clk 0:00:07]} 84. Ke4 {[%clk 0:00:09]}  Rc4+ {[%clk 0:00:07]} 85. Ke3 {[%clk 0:00:09]}  Rc8 {[%clk 0:00:08]} 86. Rb2 {[%clk 0:00:08]}  Re8+ {[%clk 0:00:08]} 87. Kd3 {[%clk 0:00:08]}  Re7 {[%clk 0:00:09]} 88. Ra2 {[%clk 0:00:08]}  Kf1 {[%clk 0:00:09]} 89. Rb2 {[%clk 0:00:02]}  Re2 {[%clk 0:00:07]} 90. Rb5 {[%clk 0:00:01]}  Kxf2 {[%clk 0:00:08]} 91. Rh5 {[%clk 0:00:02]}  Re7 {[%clk 0:00:08]} 92. Kd4 {[%clk 0:00:02]}  Rd7+ {[%clk 0:00:08]} 93. Ke5 {[%clk 0:00:02]}  Rd8 {[%clk 0:00:08]} 94. Ke4 {[%clk 0:00:02]}  Re8+ {[%clk 0:00:08]} 95. Kd4 {[%clk 0:00:03]}  Ke2 {[%clk 0:00:08]} 96. Rh8 {[%clk 0:00:03]}  Rxh8 {[%clk 0:00:08]} 0-1


[Site "https://www.chess.com"]

[Event "Titled Tuesday Blitz April 12 Early 2022"]
[White "Omariev, Maksim"]
[Black "Rudykh, Stepan"]
[WhiteFideId "4193423"]
[BlackFideId "4180321"]
[WhiteElo "2486"]
[BlackElo "2174"]
[Result "1-0"]
[Round "08"]
[TimeControl "180+1"]
[Date "2022.04.13"]
[WhiteClock "0:00:06"]
[BlackClock "0:00:02"]

1. g4 {[%clk 0:03:00]}  d5 {[%clk 0:02:56]} 2. Bg2 {[%clk 0:03:00]}  Bxg4 {[%clk 0:02:42]} 3. c4 {[%clk 0:03:00]}  e6 {[%clk 0:02:37]} 4. Qb3 {[%clk 0:02:55]}  Nf6 {[%clk 0:02:27]} 5. cxd5 {[%clk 0:02:48]}  exd5 {[%clk 0:02:26]} 6. Nc3 {[%clk 0:02:42]}  Nbd7 {[%clk 0:01:58]} 7. Nxd5 {[%clk 0:02:10]}  Nc5 {[%clk 0:01:34]} 8. Qe3+ {[%clk 0:02:04]}  Be6 {[%clk 0:01:27]} 9. Nxf6+ {[%clk 0:02:04]}  Qxf6 {[%clk 0:01:27]} 10. d4 {[%clk 0:02:05]}  Nd7 {[%clk 0:01:08]} 11. Bxb7 {[%clk 0:01:48]}  Rb8 {[%clk 0:00:53]} 12. Bc6 {[%clk 0:01:48]}  Bb4+ {[%clk 0:00:48]} 13. Bd2 {[%clk 0:01:42]}  O-O {[%clk 0:00:47]} 14. Nf3 {[%clk 0:01:34]}  Rfe8 {[%clk 0:00:39]} 15. Bxb4 {[%clk 0:01:30]}  Rxb4 {[%clk 0:00:37]} 16. Qc3 {[%clk 0:01:30]}  Rc4 {[%clk 0:00:35]} 17. Qe3 {[%clk 0:01:07]}  Rxc6 {[%clk 0:00:34]} 18. d5 {[%clk 0:01:08]}  Rb6 {[%clk 0:00:28]} 19. O-O {[%clk 0:01:01]}  Rxb2 {[%clk 0:00:13]} 20. Kh1 {[%clk 0:00:51]}  Kf8 {[%clk 0:00:11]} 21. Qa3+ {[%clk 0:00:49]}  Kg8 {[%clk 0:00:09]} 22. dxe6 {[%clk 0:00:47]}  Rxe6 {[%clk 0:00:10]} 23. Rad1 {[%clk 0:00:44]}  Nf8 {[%clk 0:00:10]} 24. Nd4 {[%clk 0:00:44]}  Reb6 {[%clk 0:00:08]} 25. Qxa7 {[%clk 0:00:19]}  c5 {[%clk 0:00:08]} 26. Nb3 {[%clk 0:00:13]}  Qc6+ {[%clk 0:00:08]} 27. f3 {[%clk 0:00:12]}  Rxe2 {[%clk 0:00:09]} 28. Rd8 {[%clk 0:00:09]}  Qh6 {[%clk 0:00:04]} 29. Qc7 {[%clk 0:00:07]}  Rd6 {[%clk 0:00:02]} 30. Qxd6 {[%clk 0:00:06]} 1-0


[Site "https://www.chess.com"]